Cogmind - Beta 15 @@@ ROGUE MODE // 2025.05.06 @ 12:09:33 Player: Domo Result: Destroyed by H-55 Commando with Gauss Rifle Performance ------------- Evolutions (2) 1000 Regions Visited (4) 800 Robots Destroyed (39) 195 Value Destroyed (650) 650 Prototype IDs (0) 0 Alien Tech Used (0) 0 Bonus (0) 0 TOTAL SCORE: 2645 Bonus ------- None Cogmind --------- Core Integrity 0/550 Matter 173/300 Energy 16/265 System Corruption 0% Temperature Cool (0) Movement Core (900) Ox17 Location -8/Materials Parts ------- > --- POWER (1) -------- Improved Ion Engine > --- PROPULSION (2) --- (None) > --- UTILITY (6) ------ Scrap Suit Large Storage Unit Terrain Scan Processor Heavy Armor Plating > --- WEAPON (2) ------- Flak Cannon > --- INVENTORY (15) --- Hacking Suite Shock Rifle Heavy Assault Rifle Autogun Peak State ------------ > --- POWER ------------ Improved Ion Engine > --- PROPULSION ------- (None) > --- UTILITY ---------- Scrap Suit Large Storage Unit Terrain Scan Processor Heavy Armor Plating > --- WEAPON ----------- Flak Cannon > --- INVENTORY -------- Hacking Suite Shock Rifle Heavy Assault Rifle Autogun [Rating: 23] Favorites ----------- Power Light Ion Engine Engine Light Ion Engine Propulsion Light Treads Treads Light Treads Leg Aluminum Leg Utility Large Storage Unit Device Scrap Suit Storage Large Storage Unit Processor Targeting Computer Hackware Hacking Suite Protection Utility Shielding Weapon Heavy Assault Rifle Ballistic Gun Heavy Assault Rifle Ballistic Cannon Flak Cannon Special Weapon Mining Laser Build | -11 -10 -9 -9 -8 ------- Run | Yrd Mat Mat Min Mat Slots Evolved 4 | . . 2 . 2 Power . | . . . . . Propulsion . | . . . . . Utility 4 | . . 2 . 2 Weapon . | . . . . . Parts Attached 32 | 6 2 11 . 13 Power 7 | 1 . 2 . 4 Engine 7 | 1 . 2 . 4 Core . | . . . . . Reactor . | . . . . . Propulsion 6 | 2 . 3 . 1 Treads 5 | 2 . 3 . . Leg 1 | . . . . 1 Wheel . | . . . . . Hover . | . . . . . Flight . | . . . . . Utility 10 | 1 2 3 . 4 Device 1 | . . . . 1 Storage 2 | 1 1 . . . Processor 2 | . . 2 . . Hackware 1 | . . 1 . . Protection 4 | . 1 . . 3 Artifact . | . . . . . Weapon 9 | 2 . 3 . 4 Energy Gun . | . . . . . Energy Cannon . | . . . . . Ballistic Gun 7 | 2 . 3 . 2 Ballistic Cannon 1 | . . . . 1 Launcher . | . . . . . Special Weapon 1 | . . . . 1 Impact Weapon . | . . . . . Slashing Weapon . | . . . . . Piercing Weapon . | . . . . . Special Melee Weapon . | . . . . . Unidentified Prototypes . | . . . . . Parts Lost 19 | . . 6 . 13 Power 5 | . . 2 . 3 Propulsion 6 | . . 3 . 3 Utility 3 | . . . . 3 Weapon 5 | . . 1 . 4 Highest Loss Streak 5 | . . 3 . 5 To Critical Strikes 1 | . . . . 1 Average Backups 7 | 1 3 7 10 10 Power 2 | 1 2 2 4 3 Propulsion . | . . . . . Utility 1 | . . . 2 2 Weapon 3 | . 1 3 4 5 Tool/Special . | . . . . . Unused Backups 3 | . . . . 3 Power . | . . . . . Propulsion . | . . . . . Utility . | . . . . . Weapon 3 | . . . . 3 Tool/Special . | . . . . . Average Slot Usage (%) 87 | . 87 91 100 64 Engine 10 | . 14 11 11 5 Treads 19 | . 28 21 22 8 Storage 11 | . 14 11 11 9 Processor 14 | . . 14 22 16 Protection 9 | . 2 11 11 10 Ballistic Gun 20 | . 28 21 22 11 Peak Build Rating 23 | 6 7 14 14 23 Average Rating 10 | 5 6 10 13 12 On Entrance 8 | . 6 7 13 14 Naked Turns . | . . . . . Heaviest Build 40 | 11 27 32 30 40 Greatest Support 43 | 40 40 43 40 40 Greatest Overweight (x) 13 | . . 1 . 13 Average Overweight (x) . | . . . . 2 Largest Inventory Capacity 15 | 8 15 15 15 15 Average Capacity 13 | 7 9 15 15 15 Most Carried 14 | 3 5 10 12 14 Average Carried 8 | 1 3 7 11 11 Final Capacity 15 | 8 15 15 15 15 Final Carried 12 | 3 4 10 12 4 Class Distribution -------------------- 54% | Mutant 45% | Scavenger-Mutant Dominant Class ---------------- Mutant | -10/Materials Mutant | -9/Materials Scavenger-Mutant | -9/Mines Mutant | -8/Materials Resources | -11 -10 -9 -9 -8 ----------- Run | Yrd Mat Mat Min Mat Matter Collected 860 | 300 16 436 19 89 Remotely . | . . . . . Salvage Created 911 | 130 84 565 . 132 Parts 83 | 6 12 54 . 11 Haulers Intercepted . | . . . . . Recyclers Shooed . | . . . . . Parts Field Recycled . | . . . . . Retrieved Matter . | . . . . . Parts Self-Destructed . | . . . . . Prevented . | . . . . . Kills | -11 -10 -9 -9 -8 ------- Run | Yrd Mat Mat Min Mat Combat Hostiles Destroyed 30 | . 6 17 1 6 Guns 30 | . 6 17 1 6 Classes Destroyed 9 | 3 1 5 . . Worker 2 | 2 . . . . Builder 1 | . . 1 . . Tunneler 1 | 1 . . . . Recycler 1 | 1 . . . . Operator 2 | . . 1 . 1 Watcher 2 | . . 2 . . Swarmer 20 | . 6 10 . 4 Grunt 6 | . . 4 . 2 Sentry 3 | . . 3 . . Best Kill Streak 6 | 2 3 5 1 6 Combat Bots Only 6 | . 3 4 1 6 Max Kills in Single Turn 1 | 1 1 1 1 1 Gunslinging . | . . . . . Exploded . | . . . . . Melee . | . . . . . Uniques/NPCs Destroyed 1 | . . . 1 . YI-UF0 (-9/Mines) Combat | -11 -10 -9 -9 -8 -------- Run | Yrd Mat Mat Min Mat Hostile Shots Fired 274 | . 22 131 4 117 Missed 79 | . 6 45 1 27 Hits 195 | . 16 86 3 90 Melee 5 | . . . . 5 Projectile 190 | . 16 86 3 85 AOE 5 | . . . 4 1 Critical Strikes 10 | . 2 2 . 6 Actively Blocked 2 | . . 1 . 1 Damage Taken 3005 | . 125 1040 125 1715 Core 777 | . 9 198 . 570 Absorbed by Shields . | . . . . . Redirected to Shielding 51 | . . 26 . 25 Core Remaining (%) 82 | 100 96 . 50 . Volleys Fired 139 | 10 7 74 1 47 Largest 2 | 2 2 2 2 2 Hottest 123 | 40 40 46 46 123 Shots Fired 222 | 20 14 136 3 49 Gun 218 | 20 14 136 3 45 Cannon . | . . . . . Launcher . | . . . . . Special 4 | . . . . 4 Kinetic 218 | 20 14 136 3 45 Thermal 4 | . . . . 4 Explosive . | . . . . . Electromagnetic . | . . . . . Robot Hit Streak 17 | 3 5 9 6 17 Robot Miss Streak 6 | 1 2 6 . 2 Penetration Max . | . . . . . Secondary Targets 3 | . 1 2 . . Max Gunslinging Chain 1 | . 1 1 . . Shots Hit Robots 148 | 12 8 85 1 42 Core Hits 68 | 7 6 37 1 17 Critical Kills . | . . . . . Critical Parts Destroyed 1 | . . 1 . . Critical Strikes 1 | . . 1 . . Destroy 1 | . . 1 . . Melee Attacks . | . . . . . Impact . | . . . . . Slashing . | . . . . . Piercing . | . . . . . Sneak Attacks . | . . . . . Combat Hostiles . | . . . . . Follow-up Attacks . | . . . . . Damage Inflicted 1845 | 151 86 937 16 655 Guns 1797 | 151 86 937 16 607 Cannons . | . . . . . Explosions . | . . . . . Melee . | . . . . . Ramming . | . . . . . Kinetic 1797 | 151 86 937 16 607 Thermal 48 | . . . . 48 Explosive . | . . . . . Electromagnetic . | . . . . . Impact . | . . . . . Slashing . | . . . . . Piercing . | . . . . . Highest Corruption 1 | . . 1 1 . Average Corruption 1 | . . 1 1 . Corruption Purged . | . . . . . Corruption Blocked . | . . . . . Effects 7 | . . 3 4 . Matter Fused 3 | . . 2 1 . Energy Discharges 2 | . . 1 1 . Data Loss (minor) 1 | . . . 1 . Misfires 1 | . . . 1 . Overload Shots . | . . . . . Overflow Damage . | . . . . . Projectiles . | . . . . . Explosions . | . . . . . Melee . | . . . . . Knockbacks . | . . . . . Impact . | . . . . . Kinetic . | . . . . . Secondary . | . . . . . Self-Inflicted Damage . | . . . . . Shots . | . . . . . Rammed . | . . . . . Targets Rammed . | . . . . . Kicked . | . . . . . Crushed . | . . . . . Highest Temperature 85 | . . 19 . 85 Average Temperature 27 | . . 6 . 42 Received Heat Transfer 471 | . . 264 . 207 Siege Activations . | . . . . . Martial Activations . | . . . . . Shielding Activations . | . . . . . Robots Disrupted . | . . . . . Combat Hostiles . | . . . . . Robots Corrupted . | . . . . . Combat Hostiles . | . . . . . Parts Fried . | . . . . . Impact Corruptions . | . . . . . Robots Melted . | . . . . . Combat Hostiles . | . . . . . Parts Melted . | . . . . . Heat Transferred 100 | . . . . 100 Parts Sabotaged . | . . . . . Parts Stolen . | . . . . . Parts Stripped . | . . . . . Power Chain Reactions . | . . . . . Alert | -11 -10 -9 -9 -8 ------- Run | Yrd Mat Mat Min Mat Maximum Alert Level . | . . . . . Low Security (%) 100 | 100 100 100 100 100 Level 1 . | . . . . . Level 2 . | . . . . . Level 3 . | . . . . . Level 4 . | . . . . . Level 5 . | . . . . . High Security . | . . . . . Max Security . | . . . . . Peak Influence 170 | 10 125 170 49 125 Initial 49 | . 3 . 49 . Average 50 | 1 49 97 4 27 Influence Increases 960 | 20 170 547 . 223 Destroy 0b10 Robot/C 580 | . 120 340 . 120 Destroy 0b10 Robot/NC 45 | 20 . 20 . 5 Destroy Leader 124 | . 20 84 . 20 Successful Hack 27 | . 15 12 . . Destroy Structure 4 | . . 1 . 3 Partial Spotted 15 | . . 15 . . Lose Combat Pursuer 165 | . 15 75 . 75 Influence Decreases 960 | 15 173 421 128 223 Entered New Map 83 | . 2 2 79 . Time Decay 712 | 15 171 359 49 118 Lost Part 165 | . . 60 . 105 Squads Dispatched 7 | . 1 4 . 2 Investigation 2 | . 1 1 . . Extermination . | . . . . . Reinforcement 5 | . . 3 . 2 Assault . | . . . . . Garrison . | . . . . . Intercept . | . . . . . Searches Triggered . | . . . . . Construction Impeded . | . . . . . Haulers Reinforced . | . . . . . Active Scanning Responses . | . . . . . Cargo Convoy Interrupts . | . . . . . Stealth | -11 -10 -9 -9 -8 --------- Run | Yrd Mat Mat Min Mat Distress Signals 2 | . . 1 . 1 Communications Jammed . | . . . . . Distress Signals . | . . . . . Times Spotted 57 | . 7 32 2 16 Peak Tracking Total 6 | . 3 5 1 6 Tactical Retreats 9 | . 1 2 1 5 Traps | -11 -10 -9 -9 -8 ------- Run | Yrd Mat Mat Min Mat Traps Triggered 3 | . 1 2 . . Indirectly . | . . . . . Trap Hack Attempts . | . . . . . Triggered . | . . . . . Disarmed . | . . . . . Reprogrammed . | . . . . . Reused . | . . . . . Traps Extracted . | . . . . . Installed . | . . . . . Triggered . | . . . . . Machines | -11 -10 -9 -9 -8 ---------- Run | Yrd Mat Mat Min Mat Machines Disabled . | . . . . . Max in Single Turn . | . . . . . Machines Repaired . | . . . . . Machines Dismantled . | . . . . . Machines Sabotaged . | . . . . . Overloaded Fab Kills . | . . . . . Hacking | -11 -10 -9 -9 -8 --------- Run | Yrd Mat Mat Min Mat Machines Accessed 6 | . 2 4 . . Terminals 5 | . 2 3 . . Fabricators . | . . . . . Repair Stations . | . . . . . Recycling Units . | . . . . . Scanalyzers 1 | . . 1 . . Garrison Access . | . . . . . Total Hacks 19 | . 7 12 . . Successful 12 | . 3 9 . . Failed 7 | . 4 3 . . Catastrophic 1 | . 1 . . . Database Lockouts . | . . . . . Manual 11 | . 6 5 . . Terminals 14 | . 7 7 . . Fabricators . | . . . . . Repair Stations . | . . . . . Recycling Units . | . . . . . Scanalyzers 5 | . . 5 . . Garrison Access . | . . . . . Terminal Hacks 7 | . 3 4 . . Part Schematic 1 | . 1 . . . Terminal Index 1 | . 1 . . . Scanalyzer Index 1 | . 1 . . . Dispatch Records 1 | . . 1 . . Security Status 1 | . . 1 . . Transport Status 1 | . . 1 . . Zone Layout 1 | . . 1 . . Fabricator Hacks . | . . . . . Repair Station Hacks . | . . . . . Recycling Unit Hacks . | . . . . . Scanalyzer 5 | . . 5 . . Insert Component 3 | . . 3 . . Analyze 2 | . . 2 . . Garrison Access Hacks . | . . . . . Unauthorized Hacks . | . . . . . Terminals . | . . . . . Fabricators . | . . . . . Repair Stations . | . . . . . Recycling Units . | . . . . . Scanalyzers . | . . . . . Garrison Access . | . . . . . Data Cores Recovered . | . . . . . Used . | . . . . . Hacking Detections 3 | . 2 1 . . Full Trace Events 2 | . 1 1 . . Feedback Events . | . . . . . Feedback Blocked . | . . . . . Robot Schematics Acquired . | . . . . . Robots Built . | . . . . . Authchips . | . . . . . Time . | . . . . . Total Robot Build Rating . | . . . . . Part Schematics Acquired 3 | . 1 2 . . Parts Built . | . . . . . Authchips . | . . . . . Time . | . . . . . Total Part Build Rating . | . . . . . Parts Repaired . | . . . . . Time . | . . . . . Parts Recycled . | . . . . . Recycled Matter . | . . . . . Retrieved Matter . | . . . . . Retrieved Components . | . . . . . Parts Scanalyzed 2 | . . 2 . . Part Schematics Acquired 2 | . . 2 . . Parts Damaged . | . . . . . Bothacking | -11 -10 -9 -9 -8 ------------ Run | Yrd Mat Mat Min Mat Used RIF Installer . | . . . . . Robots Hacked . | . . . . . Non-combat . | . . . . . Combat . | . . . . . Robot Hacks Applied . | . . . . . Relay Couplers Released . | . . . . . Fabnet Peak Effective % . | . . . . . Robots Rewired . | . . . . . Allies Hacked . | . . . . . Hacks Repelled . | . . . . . Allies | -11 -10 -9 -9 -8 -------- Run | Yrd Mat Mat Min Mat Total Allies . | . . . . . Largest Group . | . . . . . Highest-Rated Group . | . . . . . Highest-Rated Ally . | . . . . . Total Orders . | . . . . . Ally Attacks . | . . . . . Total Damage . | . . . . . Kills . | . . . . . Allies Corrupted . | . . . . . Allies Melted . | . . . . . Intel | -11 -10 -9 -9 -8 ------- Run | Yrd Mat Mat Min Mat Active Infowar (turns) . | . . . . . Robot Analysis Total . | . . . . . Derelict Logs Recovered 2 | . . . 2 . Drone Launches . | . . . . . Drone Recoveries . | . . . . . Exploration | -11 -10 -9 -9 -8 ------------- Run | Yrd Mat Mat Min Mat Turns Passed 2680 | 139 392 1030 602 517 Spaces Moved 1213 | 67 226 472 361 87 Core 34 | 8 . . . 26 Treads 1164 | 59 226 472 361 46 Legs 15 | . . . . 15 Wheels . | . . . . . Hover . | . . . . . Flight . | . . . . . Fastest Speed 50 | 50 160 160 160 160 Average Speed 168 | 146 160 162 160 277 Slowest Speed 700 | 160 160 240 160 700 Overloaded Moves . | . . . . . Propulsion Burnouts . | . . . . . Robots Hopped . | . . . . . Potential Cave-ins 2 | . . . 2 . Cave-ins Triggered . | . . . . . Exploration Rate (%) 31 | 5 41 38 67 8 Regions Visited 4 Branch Regions 1 Pre-discovered Areas . | . . . . . Known Exits Taken . | . . . . . Unknown Exits Taken 4 | 1 1 1 1 . Scrap Searched . | . . . . . Spaces Dug 1 | . . . . 1 Terrain Destroyed 2 | . . . . 2 Melee . | . . . . . Projectile 2 | . . . . 2 AOE . | . . . . . Terrain Rammed . | . . . . . Walls Destroyed . | . . . . . Machines Disabled . | . . . . . Actions | -11 -10 -9 -9 -8 --------- Run | Yrd Mat Mat Min Mat Total 1628 | 87 244 609 384 304 Wait 217 | 1 7 34 22 153 Move 1209 | 66 225 471 360 87 Hop . | . . . . . Pick Up 22 | 4 1 12 1 4 Fast Attach 13 | 5 2 4 . 2 Attach 18 | 1 . 6 . 11 Detach 3 | . 1 2 . . Swap 4 | . . 4 . . Drop 3 | . 1 2 . . Fire 139 | 10 7 74 1 47 Melee . | . . . . . Ram . | . . . . . Kick . | . . . . . Crush . | . . . . . Escape Stasis . | . . . . . Rewire . | . . . . . Trap . | . . . . . Miscellaneous . | . . . . . Route ------- -11/Scrapyard -10/Materials -9/Materials (discovered 2 exits: [*Min] / [*Sto]) -9/Mines (discovered 2 exits: [*Mat] / [*Zio]) -8/Materials History --------- Turn | Location | Event 9 | -11/Scrapyard | Discovered new exit (range 14) 140 | -11/Scrapyard | Entered Materials 312 | -10/Materials | Build established: Mutant 358 | -10/Materials | Discovered new exit (range 16) 532 | -10/Materials | Entered another Materials area 532 | -9/Materials | Evolved 2 slots: Utility x2 1051 | -9/Materials | Lost 3 parts (1p1n1w) 1129 | -9/Materials | Discovered new exit (range 15) 1150 | -9/Materials | Discovered new exit (range 15) 1562 | -9/Materials | Entered Mines 1583 | -9/Mines | A Derelict revealed a hidden shortcut to a safe place 1693 | -9/Mines | Learned location of 1 exit from Lower Caves 1707 | -9/Mines | Learned 4 Materials zone layouts 1726 | -9/Mines | Build established: Scavenger-Mutant 1759 | -9/Mines | Found a Scrap Suit stashed away for nefarious purposes 1762 | -9/Mines | Found Scrap Suit 2113 | -9/Mines | Destroyed YI-UF0 2140 | -9/Mines | Discovered new exit (range 9) 2164 | -9/Mines | Entered Materials 2164 | -8/Materials | Evolved 2 slots: Utility x2 2458 | -8/Materials | Lost 5 parts (1p2n2w) 2510 | -8/Materials | Core integrity fell below 50% 2547 | -8/Materials | Lost 3 parts (1p1n1u) 2595 | -8/Materials | Core integrity fell below 20% 2681 | -8/Materials | Destroyed by H-55 Commando with Gauss Rifle Last Messages --------------- Slug penetrates Wall. R-06 Scavenger collects Hvy. Assault Rifle. Slug penetrates Atomic Centrifuge. Atomic Centrifuge disabled. Slug penetrates Wall. Targeting Computer destroyed. U-05 Engineer builds a Wall. Slug penetrates Wall. Acquired Hvy. Armor Plating. Slug penetrates Wall. Utility Shielding destroyed. Acquired Hacking Suite. Slug penetrates Wall. Slug penetrates Neutrino Reactor. Hvy. Assault Rifle destroyed. Slug penetrates Neutrino Reactor. Mining Laser destroyed. Neutrino Reactor explodes. Lgt. Ion Engine severed. U-05 Engineer lays Concrete. Map ----- +----------------------------------------------------+ | | | | | ?????????????????????????????? | | ?????????????????????????????? | | #####????????????????????????? | | # ????????????????????????? | | # ????????????????????????? | | " ????????????????????????? | | # ????????????????????????? | | # ????????????????????????? | | #####?????????###????????????? | | ???############ ###########??? | | ???# ###"# #??? | | ???#""" # # #??? | | ???#""" # # #??? | | ???#""" # # #??? | | ???#""" / / """ """ #??? | | ???# # % # " " """ #??? | | #### # # "" """ #??? | | + == # %%# #??? | | #### = %# %%###########??? | | ??########### % #! ! #??? | | ??# =[# % # !g #??? | | ??# T / %=+ u h ##?? | | ### [%#== # """ gl#?? | | # [#=* # """ @#??? | | # # # """ #??? | | # """" # # #??? | | # """" # # = #??? | | # """" # ###########??? | | ########### #????????????? | | #?????????# #????????????? | | #?????????# #????????????? | | #?????????? #????????????? | | ###?????????? #????????????? | | ????????????? #????????????? | | ????????????? #????????????? | | ????????????? #????????????? | | ????????????? #????????????? | | ????????????? ?????????????? | | ?????????????????????????????? | | #####????????????????????????? | | ????????????????????????? | | ????????????????????????? | | ????????????????????????? | | #####????????????????????????? | | ?????????????????????????????? | | ?????????????????????????????? | | ?????????????????????????????? | | #####????????????????????????? | +----------------------------------------------------+ Best States ------------- Heat Dissipation 31 Energy Generation 10 Energy Capacity 250 Matter Stores 300 Matter Capacity 300 Sight Range 16 Terrain Scan Density 85 Armor Coverage 600 Utility Shielding 33 Evasion (%) 40 Targeting Accuracy 5 Recoil Reduction 2 Offensive Hacking 10 Item Schematics ----------------- Lgt. Treads | -10/Materials | Hacked Imp. Treads | -9/Materials | Scanalyzed Utility Shielding | -9/Materials | Scanalyzed Robot Schematics ------------------ None Fabricated ------------ Nothing Repaired ---------- Nothing Alien Tech Used ----------------- None Achievements -------------- None Challenges ------------ None Game ------ Seed WeaponsTripodRailcannon Manual? 0 Play Time 00:29:21 Cumulative 20.5 hours Start 2025.05.06 @ 11:30:56 End 2025.05.06 @ 12:09:33 Sessions 1 Manual Loads 0 Difficulty Rogue Special Mode None Game No. 28 Rogue 17 Adventurer 11 Explorer 0 Win Type - Total 0 Types 0/0/0/0/0/0/0/0/0/0 Lore% 4 Gallery% 14 Achievement% 15 Wizard Run 0 Options --------- Layout 1 ASCII 0 Keyboard 1 Movement Vi Keybinds 0 Fullscreen 2 Font 24/Smallcaps Map View 50x35 Zoom Use 0% Tactical HUD 0 Map Filters NONE Filters NONE Steam 1 RUN: 42a420e2-0963-458f-8cee-3dfa55a6f7ee